[Event "Early-Titled-Tuesday-Blitz-March-05-2024"]
[Site "Chess.com"]
[Date "2024.03.05"]
[Round "3"]
[White "ProChessWICTH"]
[Black "ploxoi"]
[Result "1-0"]
[WhiteElo "2622"]
[BlackElo "2449"]
[TimeControl "180+1"]
[EndTime "8:31:41 PST"]
[Termination "ProChessWICTH won by checkmate"]

1. e4 {[%clk 0:02:58.5]} 1... c5 {[%clk 0:02:59.7]} 2. Nf3 {[%clk 0:02:57.7]}
2... e6 {[%clk 0:03:00.2]} 3. c3 {[%clk 0:02:55.4]} 3... d5 {[%clk 0:03:00]} 4.
exd5 {[%clk 0:02:54.7]} 4... Qxd5 {[%clk 0:03:00.9]} 5. Na3 {[%clk 0:02:54.5]}
5... Nf6 {[%clk 0:02:59.2]} 6. d4 {[%clk 0:02:51.7]} 6... Nc6 {[%clk 0:02:59.1]}
7. Be2 {[%clk 0:02:43.4]} 7... cxd4 {[%clk 0:02:49.9]} 8. Nb5 {[%clk 0:02:40.7]}
8... Qd8 {[%clk 0:02:50]} 9. Nbxd4 {[%clk 0:02:31]} 9... Nxd4 {[%clk 0:02:49.9]}
10. Nxd4 {[%clk 0:02:30.8]} 10... a6 {[%clk 0:02:49.3]} 11. O-O {[%clk
0:02:30.1]} 11... Bc5 {[%clk 0:02:48.7]} 12. Nb3 {[%clk 0:02:25.8]} 12... Bd6
{[%clk 0:02:35.5]} 13. Bf3 {[%clk 0:02:10.3]} 13... Qc7 {[%clk 0:02:33.9]} 14.
h3 {[%clk 0:02:03.7]} 14... O-O {[%clk 0:02:33.6]} 15. Bg5 {[%clk 0:02:00.6]}
15... Bd7 {[%clk 0:02:27.1]} 16. Bxf6 {[%clk 0:01:52.6]} 16... gxf6 {[%clk
0:02:28]} 17. Re1 {[%clk 0:01:50.4]} 17... Rad8 {[%clk 0:02:25.3]} 18. Qd4
{[%clk 0:01:40.6]} 18... Bf4 {[%clk 0:02:17.5]} 19. Qxf6 {[%clk 0:01:33.7]}
19... Rfe8 {[%clk 0:01:56.9]} 20. Bxb7 {[%clk 0:00:58.3]} 20... Bd6 {[%clk
0:01:38.8]} 21. Be4 {[%clk 0:00:53]} 21... Be7 {[%clk 0:01:38.5]} 22. Qh6 {[%clk
0:00:50.9]} 22... f5 {[%clk 0:01:36.4]} 23. Bf3 {[%clk 0:00:47.8]} 23... Bf8
{[%clk 0:01:25.7]} 24. Qg5+ {[%clk 0:00:44.8]} 24... Kh8 {[%clk 0:01:23.1]} 25.
Nd4 {[%clk 0:00:44.5]} 25... Bg7 {[%clk 0:01:22.9]} 26. Bh5 {[%clk 0:00:38.5]}
26... Rg8 {[%clk 0:01:02.4]} 27. Qh4 {[%clk 0:00:37.2]} 27... e5 {[%clk
0:00:58.9]} 28. Bg6 {[%clk 0:00:35.3]} 28... h6 {[%clk 0:00:53.9]} 29. Nxf5
{[%clk 0:00:27.6]} 29... Bxf5 {[%clk 0:00:51.2]} 30. Bxf5 {[%clk 0:00:28.5]}
30... Rd2 {[%clk 0:00:51.7]} 31. Rad1 {[%clk 0:00:24.3]} 31... Rgd8 {[%clk
0:00:51.5]} 32. Bc2 {[%clk 0:00:15.3]} 32... Qb6 {[%clk 0:00:41.1]} 33. Qe4
{[%clk 0:00:12.7]} 33... Qxf2+ {[%clk 0:00:37.6]} 34. Kh1 {[%clk 0:00:13.1]}
34... Kg8 {[%clk 0:00:30]} 35. Qh7+ {[%clk 0:00:12.1]} 35... Kf8 {[%clk
0:00:30.3]} 36. Rg1 {[%clk 0:00:05.3]} 36... Rxd1 {[%clk 0:00:24.6]} 37. Bxd1
{[%clk 0:00:06.2]} 37... Rd2 {[%clk 0:00:19.2]} 38. Bb3 {[%clk 0:00:06.1]} 38...
Qg3 {[%clk 0:00:07.4]} 39. Qg8+ {[%clk 0:00:05.1]} 39... Ke7 {[%clk 0:00:08.1]}
40. Qe6+ {[%clk 0:00:04.2]} 40... Kf8 {[%clk 0:00:07.4]} 41. Qf7# {[%clk
0:00:04.3]} 1-0

[Event "Early-Titled-Tuesday-Blitz-March-05-2024"]
[Site "Chess.com"]
[Date "2024.03.05"]
[Round "3"]
[White "tarno17"]
[Black "MdChess1734"]
[Result "1-0"]
[WhiteElo "2155"]
[BlackElo "2375"]
[TimeControl "180+1"]
[EndTime "8:31:41 PST"]
[Termination "tarno17 won on time"]

1. e4 {[%clk 0:03:00.9]} 1... d5 {[%clk 0:02:57.2]} 2. exd5 {[%clk 0:03:00.9]}
2... Nf6 {[%clk 0:02:56.9]} 3. Nc3 {[%clk 0:03:01.3]} 3... Nxd5 {[%clk
0:02:56.4]} 4. d4 {[%clk 0:03:01.9]} 4... Nb6 {[%clk 0:02:40.7]} 5. Nf3 {[%clk
0:02:55.1]} 5... Bf5 {[%clk 0:02:39.8]} 6. Bf4 {[%clk 0:02:46.1]} 6... e6 {[%clk
0:02:39]} 7. Bd3 {[%clk 0:02:42.4]} 7... Bg6 {[%clk 0:02:27]} 8. O-O {[%clk
0:02:22]} 8... Nc6 {[%clk 0:02:25.6]} 9. Nb5 {[%clk 0:02:15.4]} 9... Nd5 {[%clk
0:02:17.9]} 10. Bg3 {[%clk 0:02:10.6]} 10... a6 {[%clk 0:02:15.2]} 11. Nc3
{[%clk 0:02:05.2]} 11... Nb6 {[%clk 0:02:14.8]} 12. a3 {[%clk 0:01:52.5]} 12...
Be7 {[%clk 0:02:13.1]} 13. Ne2 {[%clk 0:01:47]} 13... Bf6 {[%clk 0:02:07.6]} 14.
c3 {[%clk 0:01:46.7]} 14... Bxd3 {[%clk 0:01:31.6]} 15. Qxd3 {[%clk 0:01:47.6]}
15... Qd5 {[%clk 0:01:11.7]} 16. Bxc7 {[%clk 0:01:38.8]} 16... Nc4 {[%clk
0:01:02.3]} 17. b3 {[%clk 0:01:05.9]} 17... Nd6 {[%clk 0:01:01.9]} 18. Nf4
{[%clk 0:00:56.6]} 18... Qf5 {[%clk 0:00:37.1]} 19. Bxd6 {[%clk 0:00:55.5]}
19... Kd7 {[%clk 0:00:12.6]} 20. Qxf5 {[%clk 0:00:51.4]} 20... exf5 {[%clk
0:00:11.2]} 21. Be5 {[%clk 0:00:48.3]} 21... Be7 {[%clk 0:00:10.6]} 22. Bxg7
{[%clk 0:00:43.9]} 22... Rhg8 {[%clk 0:00:08.6]} 23. Ne5+ {[%clk 0:00:43.8]}
23... Nxe5 {[%clk 0:00:08.1]} 24. Bxe5 {[%clk 0:00:32.6]} 24... f6 {[%clk
0:00:06.9]} 25. Nd5 {[%clk 0:00:32.4]} 25... fxe5 {[%clk 0:00:06.6]} 26. Nb6+
{[%clk 0:00:32.5]} 26... Kc6 {[%clk 0:00:05.3]} 27. Nxa8 {[%clk 0:00:32.9]}
27... exd4 {[%clk 0:00:03.7]} 28. cxd4 {[%clk 0:00:32]} 28... Rxa8 {[%clk
0:00:04.4]} 29. b4 {[%clk 0:00:30]} 29... Bd6 {[%clk 0:00:04.9]} 30. Rac1+
{[%clk 0:00:27.6]} 30... Kd5 {[%clk 0:00:05.6]} 31. Rfd1 {[%clk 0:00:23.5]}
31... Rg8 {[%clk 0:00:06.2]} 32. f3 {[%clk 0:00:22]} 32... h5 {[%clk 0:00:06.7]}
33. Rc2 {[%clk 0:00:15.3]} 33... h4 {[%clk 0:00:06.5]} 34. h3 {[%clk 0:00:14.3]}
34... Re8 {[%clk 0:00:05.9]} 35. Kf1 {[%clk 0:00:13.9]} 35... Bf4 {[%clk
0:00:05]} 36. Re2 {[%clk 0:00:13.7]} 36... Rd8 {[%clk 0:00:02.4]} 37. Re7 {[%clk
0:00:12.1]} 37... b5 {[%clk 0:00:01.5]} 38. Rf7 {[%clk 0:00:12.4]} 38... Ke6
{[%clk 0:00:01.2]} 39. Ra7 {[%clk 0:00:12.5]} 1-0

[Event "Early-Titled-Tuesday-Blitz-March-05-2024"]
[Site "Chess.com"]
[Date "2024.03.05"]
[Round "3"]
[White "kids2010"]
[Black "chessamical"]
[Result "1-0"]
[WhiteElo "2769"]
[BlackElo "2125"]
[TimeControl "180+1"]
[EndTime "8:31:43 PST"]
[Termination "kids2010 won on time"]

1. e4 {[%clk 0:02:59.9]} 1... e6 {[%clk 0:02:58.8]} 2. Nc3 {[%clk 0:02:56.9]}
2... d5 {[%clk 0:02:59.1]} 3. d4 {[%clk 0:02:57.8]} 3... Bb4 {[%clk 0:02:57.5]}
4. e5 {[%clk 0:02:57.5]} 4... c5 {[%clk 0:02:57.2]} 5. a3 {[%clk 0:02:57.3]}
5... Bxc3+ {[%clk 0:02:56.6]} 6. bxc3 {[%clk 0:02:58.2]} 6... Ne7 {[%clk
0:02:56]} 7. h4 {[%clk 0:02:54.9]} 7... b6 {[%clk 0:02:53.2]} 8. Bb5+ {[%clk
0:02:52.2]} 8... Bd7 {[%clk 0:02:53.7]} 9. Bd3 {[%clk 0:02:52.8]} 9... Ba4
{[%clk 0:02:53.1]} 10. h5 {[%clk 0:02:49]} 10... h6 {[%clk 0:02:52.5]} 11. Nf3
{[%clk 0:02:49.1]} 11... c4 {[%clk 0:02:51.5]} 12. Be2 {[%clk 0:02:49.2]} 12...
Nbc6 {[%clk 0:02:48.3]} 13. Be3 {[%clk 0:02:48.5]} 13... b5 {[%clk 0:02:45.6]}
14. O-O {[%clk 0:02:45.9]} 14... a5 {[%clk 0:02:28.6]} 15. Qd2 {[%clk
0:02:43.3]} 15... Nf5 {[%clk 0:02:19]} 16. Nh2 {[%clk 0:02:40]} 16... Qh4 {[%clk
0:02:04.3]} 17. Bg4 {[%clk 0:02:27.6]} 17... Nxe3 {[%clk 0:01:56.2]} 18. fxe3
{[%clk 0:02:28.5]} 18... Ra7 {[%clk 0:01:51.6]} 19. Rf4 {[%clk 0:02:28.3]} 19...
Qe7 {[%clk 0:01:46.5]} 20. Qf2 {[%clk 0:02:19.8]} 20... O-O {[%clk 0:01:44.7]}
21. Nf3 {[%clk 0:02:15.8]} 21... b4 {[%clk 0:01:40.9]} 22. axb4 {[%clk
0:02:07.8]} 22... axb4 {[%clk 0:01:40.8]} 23. cxb4 {[%clk 0:02:05.6]} 23... Nxb4
{[%clk 0:01:40.7]} 24. Nh4 {[%clk 0:02:00.7]} 24... Bxc2 {[%clk 0:01:23.7]} 25.
Rxa7 {[%clk 0:01:58.3]} 25... Qxa7 {[%clk 0:01:23.7]} 26. Kh2 {[%clk 0:01:13.6]}
26... Nd3 {[%clk 0:01:04.4]} 27. Qxc2 {[%clk 0:01:11.8]} 27... Nxf4 {[%clk
0:01:04.5]} 28. exf4 {[%clk 0:01:12.7]} 28... Qxd4 {[%clk 0:01:04.5]} 29. Kg3
{[%clk 0:01:10.2]} 29... Qe3+ {[%clk 0:01:04.3]} 30. Nf3 {[%clk 0:01:05.6]}
30... c3 {[%clk 0:00:45.3]} 31. f5 {[%clk 0:01:03.4]} 31... exf5 {[%clk
0:00:41.7]} 32. Bxf5 {[%clk 0:01:04.3]} 32... d4 {[%clk 0:00:39.8]} 33. Qd3
{[%clk 0:00:46.9]} 33... Rd8 {[%clk 0:00:15.3]} 34. Be4 {[%clk 0:00:31.7]} 34...
Rc8 {[%clk 0:00:13.9]} 35. Qxe3 {[%clk 0:00:26]} 35... dxe3 {[%clk 0:00:12.8]}
36. Ne1 {[%clk 0:00:26.7]} 36... Rc5 {[%clk 0:00:08.3]} 37. Kf4 {[%clk
0:00:25.3]} 37... e2 {[%clk 0:00:08.1]} 38. Nc2 {[%clk 0:00:22.2]} 38... Kf8
{[%clk 0:00:06]} 39. g4 {[%clk 0:00:10.6]} 39... Ke7 {[%clk 0:00:06.3]} 40. Bf5
{[%clk 0:00:09.7]} 40... f6 {[%clk 0:00:06.2]} 41. exf6+ {[%clk 0:00:09.9]}
41... Kxf6 {[%clk 0:00:06.2]} 42. Kf3 {[%clk 0:00:10.6]} 42... Re5 {[%clk
0:00:05.8]} 43. Ne1 {[%clk 0:00:11.2]} 43... Kg5 {[%clk 0:00:05.1]} 44. Bd3
{[%clk 0:00:11.9]} 44... Kh4 {[%clk 0:00:04.6]} 45. Bxe2 {[%clk 0:00:12.3]}
45... Rxe2 {[%clk 0:00:01.3]} 46. Kxe2 {[%clk 0:00:13.1]} 46... Kxg4 {[%clk
0:00:01.6]} 47. Ng2 {[%clk 0:00:14]} 1-0

[Event "Early-Titled-Tuesday-Blitz-March-05-2024"]
[Site "Chess.com"]
[Date "2024.03.05"]
[Round "3"]
[White "FlemingA"]
[Black "PavelShkapenko"]
[Result "0-1"]
[WhiteElo "2443"]
[BlackElo "2746"]
[TimeControl "180+1"]
[EndTime "8:31:44 PST"]
[Termination "PavelShkapenko won by resignation"]

1. Nc3 {[%clk 0:03:00.9]} 1... e5 {[%clk 0:02:56.2]} 2. Nf3 {[%clk 0:02:58.6]}
2... Nc6 {[%clk 0:02:53.5]} 3. d4 {[%clk 0:02:56.9]} 3... exd4 {[%clk
0:02:53.5]} 4. Nxd4 {[%clk 0:02:57.3]} 4... Nf6 {[%clk 0:02:54]} 5. Bg5 {[%clk
0:02:57.5]} 5... Bb4 {[%clk 0:02:53.3]} 6. Nxc6 {[%clk 0:02:58]} 6... bxc6
{[%clk 0:02:52.7]} 7. Qd4 {[%clk 0:02:58.2]} 7... Qe7 {[%clk 0:02:37.1]} 8. Bxf6
{[%clk 0:02:57.9]} 8... gxf6 {[%clk 0:02:37.5]} 9. e3 {[%clk 0:02:49.5]} 9...
Rb8 {[%clk 0:02:15.4]} 10. O-O-O {[%clk 0:02:20.8]} 10... Bc5 {[%clk 0:01:38.6]}
11. Qh4 {[%clk 0:01:43.5]} 11... d5 {[%clk 0:01:34.4]} 12. Bd3 {[%clk
0:01:37.6]} 12... Rb4 {[%clk 0:01:18.3]} 13. Qh6 {[%clk 0:01:35.8]} 13... Rxb2
{[%clk 0:00:53.8]} 14. Na4 {[%clk 0:00:52.2]} 14... Rxa2 {[%clk 0:00:44.5]} 15.
Nxc5 {[%clk 0:00:52.4]} 15... Qxc5 {[%clk 0:00:44.8]} 16. Qxf6 {[%clk
0:00:53.1]} 16... Rg8 {[%clk 0:00:38.6]} 17. Bxh7 {[%clk 0:00:37.8]} 17... Qa5
{[%clk 0:00:32.1]} 18. Bxg8 {[%clk 0:00:07.2]} 18... Ra1+ {[%clk 0:00:31.5]} 19.
Qxa1 {[%clk 0:00:07.9]} 19... Qxa1+ {[%clk 0:00:32]} 20. Kd2 {[%clk 0:00:08.8]}
20... Qg7 {[%clk 0:00:32.5]} 21. Bxf7+ {[%clk 0:00:06.6]} 21... Qxf7 {[%clk
0:00:30.1]} 22. Ke2 {[%clk 0:00:06.5]} 22... Bf5 {[%clk 0:00:28.8]} 23. Rd2
{[%clk 0:00:06.1]} 23... Qg6 {[%clk 0:00:28.5]} 24. Rg1 {[%clk 0:00:03.6]} 24...
Qh5+ {[%clk 0:00:25.4]} 25. f3 {[%clk 0:00:02.3]} 25... Qxh2 {[%clk 0:00:25.3]}
26. Kf2 {[%clk 0:00:03.2]} 26... Qe5 {[%clk 0:00:24.1]} 27. Re2 {[%clk
0:00:02.6]} 27... Kd7 {[%clk 0:00:20.8]} 28. g4 {[%clk 0:00:02.9]} 28... Qh2+
{[%clk 0:00:15.7]} 29. Rg2 {[%clk 0:00:03.3]} 29... Qh4+ {[%clk 0:00:15.6]} 30.
Rg3 {[%clk 0:00:02.1]} 30... Be6 {[%clk 0:00:11.7]} 31. Kg2 {[%clk 0:00:02.5]}
31... a5 {[%clk 0:00:10.5]} 32. c3 {[%clk 0:00:02.2]} 32... a4 {[%clk
0:00:09.7]} 33. g5 {[%clk 0:00:02.8]} 33... Qh7 {[%clk 0:00:09.6]} 34. g6 {[%clk
0:00:03.2]} 34... Qg7 {[%clk 0:00:10]} 35. Kh2 {[%clk 0:00:01.8]} 35... Bf5
{[%clk 0:00:09.8]} 36. Reg2 {[%clk 0:00:02.3]} 36... a3 {[%clk 0:00:10]} 37. Kg1
{[%clk 0:00:03]} 37... Bb1 {[%clk 0:00:09.6]} 38. f4 {[%clk 0:00:02.5]} 38... a2
{[%clk 0:00:09.9]} 39. f5 {[%clk 0:00:01.5]} 39... a1=Q {[%clk 0:00:09.7]} 40.
f6 {[%clk 0:00:02.4]} 40... Bxg6+ {[%clk 0:00:09.3]} 41. Kh2 {[%clk 0:00:03.3]}
41... Qh6+ {[%clk 0:00:09.4]} 42. Rh3 {[%clk 0:00:04.2]} 42... Qxh3+ {[%clk
0:00:09.5]} 43. Kxh3 {[%clk 0:00:04.4]} 43... Qb1 {[%clk 0:00:09.5]} 44. Kg4
{[%clk 0:00:02.9]} 44... Qf5+ {[%clk 0:00:09.5]} 45. Kg3 {[%clk 0:00:03.3]}
45... Qxf6 {[%clk 0:00:09.8]} 46. Rf2 {[%clk 0:00:04.2]} 46... Qg5+ {[%clk
0:00:10]} 0-1

[Event "Early-Titled-Tuesday-Blitz-March-05-2024"]
[Site "Chess.com"]
[Date "2024.03.05"]
[Round "3"]
[White "KVAIDAN"]
[Black "deepfear"]
[Result "1-0"]
[WhiteElo "2336"]
[BlackElo "1966"]
[TimeControl "180+1"]
[EndTime "8:31:45 PST"]
[Termination "KVAIDAN won on time"]

1. f4 {[%clk 0:02:12.4]} 1... g6 {[%clk 0:02:52.6]} 2. Nf3 {[%clk 0:02:08.7]}
2... Bg7 {[%clk 0:02:52.6]} 3. e4 {[%clk 0:02:01.1]} 3... e6 {[%clk 0:02:28.3]}
4. Nc3 {[%clk 0:01:55.9]} 4... Ne7 {[%clk 0:02:27.9]} 5. Be2 {[%clk 0:01:55.5]}
5... O-O {[%clk 0:02:27.4]} 6. O-O {[%clk 0:01:55.9]} 6... c5 {[%clk 0:02:24]}
7. d3 {[%clk 0:01:51.3]} 7... Nbc6 {[%clk 0:02:13.8]} 8. Qe1 {[%clk 0:01:50.6]}
8... f5 {[%clk 0:02:08.6]} 9. Qh4 {[%clk 0:01:45.6]} 9... h6 {[%clk 0:01:54.7]}
10. Be3 {[%clk 0:01:42.3]} 10... Nd4 {[%clk 0:01:46]} 11. Bd1 {[%clk 0:01:41.8]}
11... Nec6 {[%clk 0:01:35.3]} 12. Qg3 {[%clk 0:01:41.1]} 12... Kh7 {[%clk
0:01:33.2]} 13. Ne2 {[%clk 0:01:36.3]} 13... Nxf3+ {[%clk 0:01:31.3]} 14. Rxf3
{[%clk 0:01:35.3]} 14... Nd4 {[%clk 0:01:27.6]} 15. Rf1 {[%clk 0:01:32.2]} 15...
b6 {[%clk 0:01:24.7]} 16. c3 {[%clk 0:01:31.3]} 16... Nxe2+ {[%clk 0:01:16.3]}
17. Bxe2 {[%clk 0:01:31.1]} 17... Bb7 {[%clk 0:01:16.7]} 18. Bf3 {[%clk
0:01:31.3]} 18... d5 {[%clk 0:01:10.2]} 19. Rad1 {[%clk 0:01:30.8]} 19... d4
{[%clk 0:01:03.7]} 20. exf5 {[%clk 0:01:15.2]} 20... exf5 {[%clk 0:00:33.8]} 21.
Bxb7 {[%clk 0:01:04.4]} 21... dxe3 {[%clk 0:00:33.8]} 22. Bxa8 {[%clk
0:01:02.8]} 22... e2 {[%clk 0:00:33.9]} 23. Bf3 {[%clk 0:00:54]} 23... exf1=Q+
{[%clk 0:00:31.8]} 24. Kxf1 {[%clk 0:00:54]} 24... Re8 {[%clk 0:00:28.7]} 25.
Qf2 {[%clk 0:00:50]} 25... Qd6 {[%clk 0:00:26.6]} 26. g3 {[%clk 0:00:49.9]}
26... b5 {[%clk 0:00:23.3]} 27. h4 {[%clk 0:00:41.9]} 27... b4 {[%clk
0:00:23.1]} 28. cxb4 {[%clk 0:00:40.5]} 28... Bd4 {[%clk 0:00:10.4]} 29. Qc2
{[%clk 0:00:37.7]} 29... cxb4 {[%clk 0:00:09.9]} 30. h5 {[%clk 0:00:38.2]} 30...
Bb6 {[%clk 0:00:06.9]} 31. hxg6+ {[%clk 0:00:37.3]} 31... Kxg6 {[%clk
0:00:06.5]} 32. Qc4 {[%clk 0:00:33.9]} 32... Qd4 {[%clk 0:00:06.2]} 33. Qxd4
{[%clk 0:00:25.7]} 33... Bxd4 {[%clk 0:00:07.1]} 34. b3 {[%clk 0:00:25.7]} 34...
Rc8 {[%clk 0:00:06.9]} 35. Rd2 {[%clk 0:00:22.1]} 35... Rc1+ {[%clk 0:00:06.6]}
36. Kg2 {[%clk 0:00:22.5]} 36... Rg1+ {[%clk 0:00:06.6]} 37. Kh2 {[%clk
0:00:23]} 37... Rc1 {[%clk 0:00:04.8]} 38. Re2 {[%clk 0:00:22.6]} 38... Rf1
{[%clk 0:00:04.1]} 39. Bg2 {[%clk 0:00:21.4]} 39... Bg1+ {[%clk 0:00:03]} 40.
Kh3 {[%clk 0:00:21.4]} 40... Rd1 {[%clk 0:00:03.7]} 41. Re6+ {[%clk 0:00:21.4]}
41... Kf7 {[%clk 0:00:03.6]} 42. Rd6 {[%clk 0:00:21.7]} 42... Bb6 {[%clk
0:00:03]} 43. g4 {[%clk 0:00:22]} 43... fxg4+ {[%clk 0:00:02.6]} 44. Kxg4 {[%clk
0:00:22.5]} 44... Rg1 {[%clk 0:00:02.9]} 45. Kf3 {[%clk 0:00:19.9]} 45... Bc7
{[%clk 0:00:01.6]} 46. Rxh6 {[%clk 0:00:19]} 46... Bb6 {[%clk 0:00:01.1]} 47.
Rh7+ {[%clk 0:00:17.6]} 1-0

[Event "Early-Titled-Tuesday-Blitz-March-05-2024"]
[Site "Chess.com"]
[Date "2024.03.05"]
[Round "3"]
[White "Incognito_Knight"]
[Black "Chopper1905"]
[Result "1-0"]
[WhiteElo "2720"]
[BlackElo "2943"]
[TimeControl "180+1"]
[EndTime "8:31:48 PST"]
[Termination "Incognito_Knight won by resignation"]

1. e4 {[%clk 0:03:00.9]} 1... c5 {[%clk 0:02:59.1]} 2. d4 {[%clk 0:03:00.5]}
2... cxd4 {[%clk 0:02:53.3]} 3. Qxd4 {[%clk 0:03:01.4]} 3... Nc6 {[%clk
0:02:51.4]} 4. Qd3 {[%clk 0:03:01.3]} 4... Nf6 {[%clk 0:02:46.7]} 5. Nc3 {[%clk
0:03:01.2]} 5... g6 {[%clk 0:02:43.3]} 6. Nf3 {[%clk 0:03:01]} 6... Bg7 {[%clk
0:02:43.3]} 7. Be2 {[%clk 0:03:01.5]} 7... O-O {[%clk 0:02:42.1]} 8. O-O {[%clk
0:03:01.7]} 8... b6 {[%clk 0:02:39]} 9. Nd5 {[%clk 0:02:20.4]} 9... Bb7 {[%clk
0:02:20.1]} 10. c3 {[%clk 0:02:20.3]} 10... Nh5 {[%clk 0:02:15]} 11. Bg5 {[%clk
0:01:52.7]} 11... h6 {[%clk 0:02:09.2]} 12. Bh4 {[%clk 0:01:46.6]} 12... g5
{[%clk 0:01:55.7]} 13. Bg3 {[%clk 0:01:42.5]} 13... d6 {[%clk 0:01:34.7]} 14.
Rad1 {[%clk 0:01:37.9]} 14... Rc8 {[%clk 0:01:30.4]} 15. Rfe1 {[%clk 0:01:15]}
15... Nxg3 {[%clk 0:01:29.1]} 16. hxg3 {[%clk 0:01:15.9]} 16... g4 {[%clk
0:01:12.5]} 17. Nh4 {[%clk 0:01:13.4]} 17... Ne5 {[%clk 0:01:08.4]} 18. Qe3
{[%clk 0:01:04.3]} 18... e6 {[%clk 0:00:57.8]} 19. Nf4 {[%clk 0:01:04.2]} 19...
Nc4 {[%clk 0:00:53.9]} 20. Qc1 {[%clk 0:00:29.3]} 20... Qg5 {[%clk 0:00:43]} 21.
Bxc4 {[%clk 0:00:21.1]} 21... Rxc4 {[%clk 0:00:43.9]} 22. Rxd6 {[%clk
0:00:19.7]} 22... Rxe4 {[%clk 0:00:39.7]} 23. Rxe4 {[%clk 0:00:19.1]} 23... Bxe4
{[%clk 0:00:40.6]} 24. Qe3 {[%clk 0:00:18.7]} 24... Bb1 {[%clk 0:00:17.3]} 25.
a3 {[%clk 0:00:16.8]} 25... Qb5 {[%clk 0:00:17]} 26. Qd2 {[%clk 0:00:15.1]}
26... Be4 {[%clk 0:00:12.9]} 27. Kh2 {[%clk 0:00:11.4]} 27... a5 {[%clk
0:00:12.8]} 28. f3 {[%clk 0:00:11.4]} 28... gxf3 {[%clk 0:00:12.4]} 29. Nxf3
{[%clk 0:00:11.3]} 29... Ba8 {[%clk 0:00:10.2]} 30. Rd8 {[%clk 0:00:10.6]} 30...
Bf6 {[%clk 0:00:07.3]} 31. Rxf8+ {[%clk 0:00:10.4]} 31... Kxf8 {[%clk
0:00:08.2]} 32. Nd4 {[%clk 0:00:08.6]} 32... Qc4 {[%clk 0:00:05]} 33. Nfxe6+
{[%clk 0:00:05.7]} 33... fxe6 {[%clk 0:00:04.2]} 34. Qxh6+ {[%clk 0:00:06.5]}
34... Ke7 {[%clk 0:00:03.5]} 35. Qh7+ {[%clk 0:00:05.6]} 35... Kd6 {[%clk
0:00:04]} 36. Qg8 {[%clk 0:00:04.2]} 36... Bxd4 {[%clk 0:00:02.9]} 37. cxd4
{[%clk 0:00:04.8]} 37... Qd5 {[%clk 0:00:01.6]} 38. Qd8+ {[%clk 0:00:02.7]}
38... Kc6 {[%clk 0:00:02.2]} 39. Qxa8+ {[%clk 0:00:03.1]} 39... Kb5 {[%clk
0:00:03.1]} 40. Qxd5+ {[%clk 0:00:03.5]} 40... exd5 {[%clk 0:00:03.9]} 41. g4
{[%clk 0:00:04.2]} 41... Kc6 {[%clk 0:00:04.1]} 42. g5 {[%clk 0:00:04.4]} 42...
Kd6 {[%clk 0:00:05]} 43. Kg3 {[%clk 0:00:05.1]} 43... Ke6 {[%clk 0:00:05.9]} 44.
Kf4 {[%clk 0:00:05.7]} 44... b5 {[%clk 0:00:06.4]} 45. g3 {[%clk 0:00:05.7]}
45... a4 {[%clk 0:00:06.3]} 46. g4 {[%clk 0:00:06]} 46... b4 {[%clk 0:00:06.1]}
47. axb4 {[%clk 0:00:05.9]} 1-0

[Event "Early-Titled-Tuesday-Blitz-March-05-2024"]
[Site "Chess.com"]
[Date "2024.03.05"]
[Round "3"]
[White "Roman_Ovetchkin"]
[Black "AsaHoffmann"]
[Result "1-0"]
[WhiteElo "2596"]
[BlackElo "2425"]
[TimeControl "180+1"]
[EndTime "8:31:49 PST"]
[Termination "Roman_Ovetchkin won on time"]

1. d4 {[%clk 0:03:00.9]} 1... Nf6 {[%clk 0:02:59.2]} 2. c4 {[%clk 0:03:00.8]}
2... c5 {[%clk 0:02:55.1]} 3. d5 {[%clk 0:03:00.3]} 3... e5 {[%clk 0:02:54.9]}
4. Nc3 {[%clk 0:02:59]} 4... d6 {[%clk 0:02:55]} 5. e4 {[%clk 0:02:59.4]} 5...
Be7 {[%clk 0:02:53.7]} 6. h3 {[%clk 0:02:57.5]} 6... Nbd7 {[%clk 0:02:53.3]} 7.
Bd3 {[%clk 0:02:52.1]} 7... Nf8 {[%clk 0:02:53.1]} 8. Nf3 {[%clk 0:02:49.3]}
8... Ng6 {[%clk 0:02:52.9]} 9. g3 {[%clk 0:02:39]} 9... O-O {[%clk 0:02:51.6]}
10. a3 {[%clk 0:02:38.6]} 10... Ne8 {[%clk 0:02:48.7]} 11. b4 {[%clk 0:02:28.8]}
11... b6 {[%clk 0:02:45.2]} 12. Bd2 {[%clk 0:02:19]} 12... Bd7 {[%clk
0:02:42.4]} 13. Qc2 {[%clk 0:02:01]} 13... Qc8 {[%clk 0:02:41]} 14. h4 {[%clk
0:01:56.3]} 14... f5 {[%clk 0:02:27.5]} 15. h5 {[%clk 0:01:51.4]} 15... Nh8
{[%clk 0:02:24.5]} 16. exf5 {[%clk 0:01:36.6]} 16... Bxf5 {[%clk 0:02:23.8]} 17.
Bxf5 {[%clk 0:01:26.5]} 17... Rxf5 {[%clk 0:02:18.4]} 18. Qd3 {[%clk 0:01:12.9]}
18... Nf6 {[%clk 0:02:09.3]} 19. Ne4 {[%clk 0:01:08.3]} 19... Nxe4 {[%clk
0:02:03.6]} 20. Qxe4 {[%clk 0:01:05.7]} 20... Qf8 {[%clk 0:02:02.7]} 21. Ke2
{[%clk 0:01:05]} 21... Qf7 {[%clk 0:01:38.4]} 22. g4 {[%clk 0:01:02]} 22... Rf4
{[%clk 0:01:26.9]} 23. Bxf4 {[%clk 0:01:00.8]} 23... exf4 {[%clk 0:01:27]} 24.
bxc5 {[%clk 0:00:59.7]} 24... Bf6 {[%clk 0:01:24.8]} 25. Kd3 {[%clk 0:00:53.9]}
25... Bxa1 {[%clk 0:01:21.6]} 26. Rxa1 {[%clk 0:00:53]} 26... bxc5 {[%clk
0:01:20.8]} 27. Qe6 {[%clk 0:00:44.7]} 27... Re8 {[%clk 0:01:13.4]} 28. Qxf7+
{[%clk 0:00:40.9]} 28... Nxf7 {[%clk 0:01:12.6]} 29. Rb1 {[%clk 0:00:41.4]}
29... h6 {[%clk 0:00:49.7]} 30. Rb7 {[%clk 0:00:35.1]} 30... a5 {[%clk
0:00:48.5]} 31. a4 {[%clk 0:00:20.8]} 31... Kf8 {[%clk 0:00:46.7]} 32. Rb5
{[%clk 0:00:17.3]} 32... Ra8 {[%clk 0:00:42]} 33. Ke4 {[%clk 0:00:16.2]} 33...
Re8+ {[%clk 0:00:36.2]} 34. Kxf4 {[%clk 0:00:16.1]} 34... Re2 {[%clk 0:00:35.1]}
35. Kg3 {[%clk 0:00:15]} 35... Rc2 {[%clk 0:00:32.8]} 36. Nh4 {[%clk 0:00:14.5]}
36... Rxc4 {[%clk 0:00:28.4]} 37. Nf5 {[%clk 0:00:13.8]} 37... Rb4 {[%clk
0:00:14.6]} 38. Rxa5 {[%clk 0:00:13.8]} 38... Ke8 {[%clk 0:00:13.4]} 39. Ra8+
{[%clk 0:00:13.6]} 39... Kd7 {[%clk 0:00:12.4]} 40. Ra7+ {[%clk 0:00:14.3]}
40... Ke8 {[%clk 0:00:11.4]} 41. Nxg7+ {[%clk 0:00:14.9]} 41... Kf8 {[%clk
0:00:10.4]} 42. Ne6+ {[%clk 0:00:15]} 42... Kg8 {[%clk 0:00:10.6]} 43. f4 {[%clk
0:00:15.6]} 43... c4 {[%clk 0:00:07.4]} 44. a5 {[%clk 0:00:16.2]} 44... c3
{[%clk 0:00:07]} 45. Rc7 {[%clk 0:00:16.8]} 45... Ra4 {[%clk 0:00:05.7]} 46.
Rc8+ {[%clk 0:00:17]} 46... Kh7 {[%clk 0:00:05.5]} 47. Rxc3 {[%clk 0:00:17.9]}
47... Rxa5 {[%clk 0:00:05.2]} 48. Rc7 {[%clk 0:00:18.5]} 48... Kg8 {[%clk
0:00:04.8]} 49. g5 {[%clk 0:00:17.8]} 49... hxg5 {[%clk 0:00:03.9]} 50. fxg5
{[%clk 0:00:17.6]} 50... Rxd5 {[%clk 0:00:03.6]} 51. Rc8+ {[%clk 0:00:17.9]}
51... Kh7 {[%clk 0:00:03.5]} 52. g6+ {[%clk 0:00:18.5]} 52... Kh6 {[%clk
0:00:01.2]} 53. gxf7 {[%clk 0:00:19.4]} 1-0